bitfinex-derivatives/quotes_ETHF0:USTF0_20250209
["timestamp","ask_amount","ask_price","bid_price","bid_amount"]
[1739090647411,5.00359386,2665.5,2665.4,0.00562588]
[1739090647615,5.00359386,2665.5,2665.3,3.2078]
[1739090648010,4.47850386,2665.5,2665.3,3.2078]
[1739090651321,4.47850386,2665.5,2665.1,0.00562588]
[1739090651625,1.99003283,2665.3,2665.1,0.00562588]
[1739090651814,1.625,2665.2,2665.1,0.00562588]
[1739090652122,5.7953938,2665.2,2665.1,0.00562588]
[1739090653422,4.1703938,2665.2,2665.1,0.00562588]
[1739090656529,4.7477938,2665.2,2665.1,0.00562588]
[1739090656833,5.6403692,2665.2,2665.1,0.00562588]
[1739090658731,5.0629692,2665.2,2665.1,0.00562588]
[1739090664336,6.6879692,2665.2,2665.1,0.00562588]
[1739090694857,7.2131192,2665.2,2665.1,0.00562588]
[1739090695151,6.6879692,2665.2,2665.1,0.00562588]
[1739090697852,9.8957692,2665.2,2665.1,0.00562588]
[1739090700757,10.4209192,2665.2,2665.1,0.00562588]
[1739090700959,9.8957692,2665.2,2665.1,0.00562588]
[1739090706369,6.6879692,2665.2,2665.1,0.00562588]
[1739090706663,9.8957692,2665.2,2665.1,0.00562588]
[1739090708367,10.4209192,2665.2,2665.1,0.00562588]
[1739090709459,9.8957692,2665.2,2665.1,0.00562588]
[1739090710153,10.4209192,2665.2,2665.1,0.00562588]
[1739090710358,9.8957692,2665.2,2665.1,0.00562588]
[1739090713674,10.4549692,2665.2,2665.1,0.00562588]
[1739090715072,11.3475446,2665.2,2665.1,0.00562588]
[1739090715276,10.9801392,2665.2,2664.8,1.7714]
[1739090715470,1.7851508,2664.9,2664.8,1.7714]
[1739090715662,1.7851508,2664.9,2664.5,3.2078]
[1739090715868,4.1003754,2664.6,2664.3,1.1892]
[1739090716068,0.8925754,2664.4,2664.3,1.1892]
[1739090716469,4.93185991,2664.4,2664.3,1.1892]
[1739090719975,4.03928451,2664.4,2664.3,1.1892]
[1739090720175,4.93185991,2664.4,2664.3,1.1892]
[1739090720575,0.8925754,2664.4,2664.3,1.1892]
[1739090720876,5.18427489,2664.4,2664.3,1.1892]
[1739090723476,5.76767489,2664.4,2664.3,1.1892]
[1739090723876,5.76767489,2664.4,2664.3,0.5974]
[1739090724683,5.76767489,2664.4,2664.0,0.585]
[1739090724977,0.8925754,2664.1,2664.0,1.1885]
[1739090725474,5.18306441,2664.1,2664.0,1.1885]
[1739090736683,2.46948901,2664.1,2664.0,1.1885]
[1739090737185,0.91668901,2664.1,2664.0,7.1885]
[1739090738088,0.91668901,2664.1,2664.0,1.1885]
[1739090738282,0.91668901,2664.1,2664.0,0.6035]
[1739090738888,1.80926441,2664.1,2664.0,0.6035]
[1739090743786,0.91668901,2664.1,2664.0,0.6035]
[1739090746894,1.80926441,2664.1,2664.0,0.6035]
[1739090748594,2.35856441,2664.1,2664.0,0.6035]
[1739090749287,2.35856441,2664.1,2663.7,0.5678]
[1739090749486,0.8925754,2663.8,2663.7,1.1452]
[1739090749892,5.04386833,2663.8,2663.7,1.1452]
[1739090750986,5.04386833,2663.8,2663.7,0.5774]
[1739090757497,0.89820128,2664.2,2663.7,6.5774]
[1739090757794,0.89820128,2664.2,2664.1,3.2078]
[1739090758191,5.21784516,2664.2,2664.1,3.2078]
[1739090758687,4.32526976,2664.2,2664.1,3.2078]
[1739090759799,6.32064683,2664.2,2664.1,3.2078]
[1739090759991,6.32064683,2664.2,2663.8,3.2078]
[1739090760193,1.134,2664.1,2663.8,3.2078]
[1739090760688,4.33501202,2664.0,2663.8,3.2078]
[1739090761094,1.99537707,2663.9,2663.8,3.2078]
[1739090761400,3.61937707,2663.9,2663.8,3.2078]
[1739090761698,7.84273622,2663.9,2663.8,3.2078]
[1739090762403,7.84273622,2663.9,2663.4,3.2078]
[1739090762695,1.99537707,2663.5,2663.4,3.2078]
[1739090762897,1.99537707,2663.5,2663.0,3.2078]
[1739090763092,1.168,2663.4,2663.0,3.2078]
[1739090763292,1.624,2663.3,2663.0,3.2078]
[1739090763497,5.96468775,2663.3,2663.0,3.2078]
[1739090763699,1.99537707,2663.2,2663.0,3.2078]
[1739090764193,3.95683481,2663.1,2663.0,3.2078]
[1739090764993,3.95683481,2663.1,2662.4,44.5875]
[1739090766001,3.95683481,2663.1,2662.7,3.2078]
[1739090767505,1.624,2663.3,2662.7,3.2078]
[1739090767506,4.063949,2663.2,2662.7,3.2078]
[1739090768209,4.3037441,2663.2,2662.7,3.2078]
[1739090768599,6.29912117,2663.2,2662.7,3.2078]
[1739090768902,1.99537707,2663.2,2662.7,3.2078]
[1739090769298,3.95614697,2663.1,2662.7,3.2078]
[1739090769512,3.95614697,2663.1,2662.8,40.8]
[1739090770097,5.58114697,2663.1,2662.8,40.8]
[1739090770308,5.58114697,2663.1,2662.7,3.2078]
[1739090770802,5.58114697,2663.1,2662.8,40.8]
[1739090770998,5.58114697,2663.1,2662.9,0.5836]
[1739090771199,5.58114697,2663.1,2663.0,3.7866]
[1739090771713,5.58114697,2663.1,2663.0,3.2078]
[1739090777803,3.95614697,2663.1,2663.0,3.2078]
[1739090779802,0.5758,2663.9,2663.0,9.73338]
[1739090780007,0.5758,2663.9,2663.6,3.2078]
[1739090780008,2.2018,2663.9,2663.6,3.2078]
[1739090780209,4.24742478,2663.7,2663.3,3.2078]
[1739090780410,6.04066683,2663.9,2663.3,3.2078]
[1739090780709,4.24742478,2663.6,2663.3,3.2078]
[1739090781210,4.28050748,2663.7,2663.3,3.2078]
[1739090781413,4.24742478,2663.5,2663.3,3.2078]
[1739090781604,2.2018,2663.9,2663.3,3.2078]
[1739090781804,3.71584499,2663.7,2663.6,3.2078]
[1739090782213,3.83353032,2663.8,2663.6,3.2078]
[1739090782412,2.2018,2663.9,2663.7,0.5768]
[1739090782708,4.18076923,2663.8,2663.7,0.5768]
[1739090783213,4.18076923,2663.8,2663.7,1.1542]
[1739090783705,4.25697129,2663.9,2663.7,1.1542]
[1739090783915,0.5602,2664.0,2663.7,1.1542]
[1739090784104,4.35070817,2663.9,2663.7,1.1542]
[1739090784303,4.35070817,2663.9,2663.8,40.8]
[1739090787309,0.00562588,2664.2,2663.8,40.8]
[1739090787516,0.00562588,2664.2,2664.1,3.2078]
[1739090787810,4.34809644,2664.2,2664.1,3.2078]
[1739090795619,0.00562588,2664.2,2664.1,3.2078]
[1739090797116,0.5546,2664.8,2664.1,11.20317707]
[1739090797421,0.5546,2664.8,2664.6,3.2078]
[1739090797422,4.7564187,2664.8,2664.6,3.2078]
[1739090803815,2.54267707,2664.7,2664.6,3.2078]
[1739090804212,6.74960064,2664.7,2664.6,3.2078]
[1739090804819,6.74960064,2664.7,2664.2,0.758]
[1739090805021,0.5463,2664.6,2664.2,0.758]
[1739090805518,3.90447598,2664.5,2664.2,0.758]
[1739090806225,0.5785,2664.4,2664.2,0.758]
[1739090806416,0.5785,2664.4,2664.2,0.1888]
[1739090806619,4.26269687,2664.3,2664.2,0.1888]
[1739090810325,4.26269687,2664.3,2664.0,44.5759]
[1739090811731,0.5785,2664.4,2664.1,1.99537707]
[1739090811940,0.5785,2664.4,2664.3,3.2078]
[1739090812426,0.5785,2664.4,2664.3,44.0078]
[1739090816735,0.5463,2664.6,2664.3,44.1966]
[1739090816932,0.5718,2664.9,2664.4,0.5842]
[1739090817135,1.1685,2664.9,2664.5,0.5572]
[1739090817326,5.18534785,2664.9,2664.5,0.5572]
[1739090822832,4.58864785,2664.9,2664.7,1.99537707]
[1739090823035,4.01684785,2664.9,2664.7,1.99537707]
[1739090823739,4.01684785,2664.9,2664.7,2.18417707]
[1739090825137,0.00562588,2665.0,2664.7,2.18417707]
[1739090825336,0.00562588,2665.0,2664.9,3.2078]
[1739090825537,0.00562588,2665.0,2664.9,3.3966]
[1739090826434,0.5852,2665.4,2664.9,9.3966]
[1739090826636,0.5852,2665.4,2665.3,3.2078]
[1739090827239,1.624,2666.0,2665.3,3.3966]
[1739090827435,0.5882,2665.8,2665.3,5.39197707]
[1739090827639,4.20609689,2665.7,2665.4,0.00562588]
[1739090827933,0.5882,2665.8,2665.4,0.00562588]
[1739090828132,0.5882,2665.8,2665.6,3.2078]
[1739090828336,0.5882,2665.8,2665.7,0.559]
[1739090828739,4.85852118,2665.8,2665.7,0.559]
[1739090830136,0.00562588,2665.9,2665.7,0.559]
[1739090842642,0.5919,2666.3,2665.7,6.559]
[1739090842842,0.5919,2666.3,2666.2,3.2078]
[1739090851360,0.5919,2666.3,2666.2,3.7683]
[1739090852360,0.5919,2666.3,2666.2,3.2078]
[1739090860161,0.55972588,2666.5,2666.2,3.2078]
[1739090860562,4.1550418,2666.4,2666.2,3.2078]
[1739090861257,0.55972588,2666.5,2666.3,1.99537707]
[1739090861460,0.55972588,2666.5,2666.4,0.5762]
[1739090862670,0.55972588,2666.5,2666.4,1.46749553]
[1739090866363,0.00562588,2666.5,2666.4,1.46749553]
[1739090867166,0.00562588,2666.5,2666.4,2.04149553]
[1739090868569,0.00562588,2666.5,2666.4,3.14134918]
[1739090871069,0.00562588,2666.5,2666.4,3.33014918]
[1739090872889,0.00562588,2666.5,2666.4,44.13014918]
[1739090873879,0.00562588,2666.5,2666.4,50.35914918]
[1739090874270,0.5762,2667.4,2666.4,58.53824515]
[1739090874579,1.622,2667.6,2667.0,3.2078]
[1739090874580,0.5922,2667.3,2667.0,3.2078]
[1739090874778,0.5922,2667.3,2667.1,2.58184918]
[1739090877474,0.5922,2667.3,2667.2,3.2078]
[1739090879380,3.95916019,2667.5,2667.2,3.2078]
[1739090879584,0.00562588,2667.5,2667.4,1.99114918]
[1739090882581,3.2078,2667.9,2667.4,1.99114918]
[1739090882776,0.5774,2667.8,2667.7,1.99114918]
[1739090882979,3.2078,2668.5,2667.7,1.99114918]
[1739090883183,1.1561,2668.3,2668.0,1.99114918]
[1739090883384,5.4508902,2668.3,2668.0,1.99114918]
[1739090883574,1.1561,2668.3,2668.0,1.99114918]
[1739090888888,4.267658,2668.2,2667.7,2.17994918]
[1739090890505,1.1561,2668.3,2668.0,1.99114918]
[1739090890882,3.92266287,2668.2,2667.9,3.2078]
[1739090891495,3.92266287,2668.2,2668.0,0.208]
[1739090892691,1.1561,2668.3,2668.0,2.49894918]
[1739090893396,1.1561,2668.3,2668.0,2.68774918]
[1739090893897,1.1561,2668.3,2668.2,3.2078]
[1739090894094,1.1561,2668.3,2668.0,2.68774918]
[1739090894397,1.1561,2668.3,2668.1,0.9369]
[1739090901898,1.1561,2668.3,2668.2,0.5927]
[1739090902201,0.5774,2668.3,2668.2,0.5927]
[1739090902403,0.5774,2668.3,2668.2,3.8005]
[1739090902603,3.2078,2669.1,2668.2,3.8005]
[1739090902898,2.18154234,2669.3,2668.5,5.19894918]
[1739090902899,4.27202214,2668.7,2668.5,5.19894918]
[1739090903094,4.27202214,2668.7,2668.6,0.5553]
[1739090903401,0.5845,2668.8,2668.6,41.3553]
[1739090903600,0.5845,2668.8,2668.7,0.5927]
[1739090903796,0.00364204,2669.0,2668.7,0.5927]
[1739090904003,0.00364204,2669.0,2668.8,1.99114918]
[1739090904307,4.17664356,2668.9,2668.8,1.99114918]
[1739090905505,4.17664356,2668.9,2668.6,40.9888]
[1739090905998,0.5724,2668.8,2668.6,40.9888]
[1739090906204,0.5978,2668.7,2668.6,0.1888]
[1739090907507,0.5724,2668.8,2668.6,0.1888]
[1739090907704,0.00364204,2669.0,2668.6,0.1888]
[1739090908009,3.94132281,2668.9,2668.6,0.1888]
[1739090908208,4.51372281,2668.9,2668.5,45.99894918]
[1739090908597,0.5724,2668.9,2668.5,46.93574918]
[1739090909603,0.6029,2668.8,2668.5,46.93574918]
[1739090911207,0.6029,2668.8,2668.5,43.72794918]
[1739090911409,0.6029,2668.8,2668.5,46.93574918]
[1739090912012,0.5724,2668.9,2668.5,46.93574918]
[1739090912208,0.00364204,2669.0,2668.8,5.19894918]
[1739090912510,0.00364204,2669.0,2668.9,1.1957]
[1739090913006,0.00364204,2669.0,2668.9,1.3845]
[1739090913215,0.00364204,2669.0,2668.9,1.9606]
[1739090917315,0.00364204,2669.0,2668.9,0.782]
[1739090917815,0.00364204,2669.0,2668.9,1.0817]
[1739090918516,0.00364204,2669.0,2668.9,1.6411]
[1739090918816,0.00364204,2669.0,2668.9,1.849]
[1739090919315,0.00364204,2669.0,2668.9,1.2896]
[1739090922216,0.5608,2669.5,2668.9,1.2896]
[1739090922414,0.552,2669.4,2669.1,5.19894918]
[1739090922617,4.5032838,2669.4,2669.1,5.19894918]
[1739090924312,4.5032838,2669.4,2669.1,1.99114918]
[1739090925618,3.2078,2669.7,2669.1,5.19894918]
[1739090925913,1.1876,2669.6,2669.1,5.38774918]
[1739090929205,4.04571351,2669.5,2669.1,5.38774918]
[1739090929819,4.04571351,2669.5,2669.4,3.2078]
[1739090932107,4.04571351,2669.5,2669.4,3.5074]
[1739090934723,4.04571351,2669.5,2669.4,5.0058]
[1739090935025,4.04571351,2669.5,2669.4,6.99694918]
[1739090936419,1.1876,2669.6,2669.4,6.99694918]
[1739090936728,1.1876,2669.6,2669.5,0.5792]
[1739090937921,1.1876,2669.6,2669.5,0.7864]
[1739090939117,5.09319884,2669.6,2669.5,0.2072]
[1739090941822,5.09319884,2669.6,2669.4,1.1221]
[1739090942015,0.5762,2669.5,2669.4,0.2123]
[1739090942212,0.5762,2669.5,2669.1,0.1888]
[1739090942427,0.5762,2669.5,2668.8,3.2078]
[1739090942428,4.8278,2669.4,2668.8,3.2078]
[1739090942718,5.35213,2669.4,2668.8,3.2078]
[1739090942924,4.16287309,2669.3,2668.8,3.2078]
[1739090943121,4.16287309,2669.3,2668.8,3.5075]
[1739090943423,4.16287309,2669.3,2668.8,5.0063]
[1739090943622,4.16287309,2669.3,2668.8,5.642]
[1739090945231,0.5746,2669.2,2668.8,5.642]
[1739090945524,0.5497,2669.1,2668.8,5.642]
[1739090945726,4.85860081,2669.1,2668.8,5.642]
[1739090947526,0.5546,2669.0,2668.8,5.642]
[1739090947826,0.5546,2669.0,2668.8,4.1432]
[1739090948029,3.9726489,2668.9,2668.8,4.1432]
[1739090948229,3.9726489,2668.9,2668.5,40.8]
[1739090948422,2.1797,2668.8,2668.5,40.8]
[1739090948928,8.04274244,2668.7,2668.4,0.00562588]
[1739090949127,0.5704,2668.6,2668.4,1.50462588]
[1739090949428,4.89621106,2668.5,2668.4,1.50462588]
[1739090949633,4.89621106,2668.5,2668.4,1.80442588]
[1739090950229,4.89621106,2668.5,2668.4,0.30542588]
[1739090950423,4.34161106,2668.5,2668.4,0.30542588]
[1739090951226,4.34161106,2668.5,2668.4,2.72292588]
[1739090952035,4.86611106,2668.5,2668.4,2.72292588]
[1739090952329,0.52453,2668.4,2668.1,42.2991]
[1739090952530,3.2078,2668.3,2668.1,42.2991]
[1739090952722,7.31854077,2668.3,2668.1,42.2991]
[1739090952923,1.62,2668.2,2668.1,1.4991]
[1739090953428,1.62,2668.2,2667.7,3.2078]
[1739090953429,5.73074077,2668.2,2668.0,0.2998]
[1739090953618,0.5691,2668.1,2668.0,0.2998]
[1739090954031,4.78708855,2668.1,2668.0,0.2998]
[1739090954827,5.31166855,2668.1,2667.9,0.00562588]
[1739090955031,4.78708855,2668.1,2667.9,0.00562588]
[1739090955630,0.3343,2668.0,2667.9,0.00562588]
[1739090956228,4.46340714,2668.0,2667.9,0.00562588]
[1739090957124,7.67120714,2668.0,2667.9,0.00562588]
[1739090958230,7.33690714,2668.0,2667.9,0.00562588]
[1739090966056,7.33690714,2668.0,2667.8,1.6272]
[1739090967955,7.86151714,2668.0,2667.8,1.6272]
[1739090968257,8.45391714,2668.0,2667.8,1.6272]
[1739090969157,7.92930714,2668.0,2667.8,1.6272]
[1739090969459,7.33690714,2668.0,2667.8,1.6272]
[1739090970756,7.86151714,2668.0,2667.8,1.6272]
[1739090971060,7.86151714,2668.0,2667.8,1.1272]
[1739090971460,7.33690714,2668.0,2667.8,0.1279]
[1739090971661,7.86151714,2668.0,2667.8,0.1279]
[1739090972363,7.33690714,2668.0,2667.8,0.1279]
[1739090973558,3.2078,2667.9,2667.8,0.1279]
[1739090974057,7.44549905,2667.9,2667.8,0.1279]
[1739090974561,9.06649905,2667.9,2667.8,0.1279]
[1739090983468,5.85869905,2667.9,2667.8,0.1279]
[1739090984058,5.85869905,2667.9,2667.6,1.73442588]
[1739090987663,4.23769905,2667.9,2667.6,1.73442588]
[1739090989158,3.2078,2668.0,2667.6,1.73442588]
[1739090990474,1.621,2668.3,2667.6,1.73442588]
[1739090990864,3.98818135,2668.2,2667.6,1.73442588]
[1739090996669,3.98818135,2668.2,2667.8,0.890411]
[1739090996864,4.55488135,2668.2,2667.8,0.890411]
[1739090998169,4.55488135,2668.2,2667.8,2.389711]
[1739091000869,5.12328135,2668.2,2667.8,2.389711]
[1739091003070,4.55488135,2668.2,2667.8,2.389711]
[1739091005079,4.55488135,2668.2,2668.0,0.890411]
[1739091005279,4.55488135,2668.2,2668.1,1.1071]
[1739091005280,3.98818135,2668.2,2668.1,1.1071]
[1739091005574,3.98818135,2668.2,2668.1,42.4627]
[1739091005770,4.32200464,2668.3,2668.1,42.4627]
[1739091005973,4.83342588,2668.4,2668.2,0.890411]
[1739091006378,4.32200464,2668.3,2668.2,0.890411]
[1739091006875,4.32200464,2668.3,2668.1,41.9124]
[1739091007273,4.32200464,2668.3,2668.1,0.5556]
[1739091007479,4.32200464,2668.3,2667.8,2.389711]
[1739091007680,0.9266,2668.2,2667.8,2.389711]
[1739091007975,0.5755,2668.1,2667.8,43.189711]
[1739091008177,4.78462587,2668.1,2667.8,2.389711]
[1739091008592,4.78462587,2668.1,2667.8,1.4993]
[1739091008782,4.78462587,2668.1,2667.8,42.2993]
[1739091009683,4.78462587,2668.1,2667.8,1.4993]
[1739091015788,4.78462587,2668.1,2667.9,40.8]
[1739091016382,4.78462587,2668.1,2667.7,1.1509]
[1739091017090,4.78462587,2668.1,2667.7,41.9509]
[1739091019589,4.20912587,2668.1,2667.7,41.9509]
[1739091019886,0.5845,2668.3,2667.7,41.9509]
[1739091020194,3.98178315,2668.2,2667.7,41.9509]
[1739091020395,1.10904,2668.3,2667.7,1.1509]
[1739091020688,3.98178315,2668.2,2667.7,1.1509]
[1739091025488,3.2078,2668.1,2667.7,0.5941]
[1739091025695,0.5467,2668.0,2667.7,0.5941]
[1739091026001,0.5914,2667.9,2667.7,0.5941]
[1739091026391,4.13398856,2667.8,2667.7,0.5941]
[1739091028289,4.13398856,2667.8,2667.6,1.50502588]
[1739091028692,4.13398856,2667.8,2667.6,0.00562588]
[1739091030596,5.02472416,2667.8,2667.6,0.00562588]
[1739091030797,8.23252416,2667.8,2667.6,0.00562588]
[1739091035791,0.18942887,2667.7,2667.6,0.00562588]
[1739091036200,4.4955011,2667.7,2667.6,0.00562588]
[1739091039494,4.4955011,2667.7,2667.5,1.4995]
[1739091039709,1.7837356,2667.6,2667.1,0.547]
[1739091039899,0.8907356,2667.4,2667.1,1.1397]
[1739091040201,4.0985356,2667.2,2667.1,1.1397]
[1739091040593,8.89636388,2667.2,2667.1,1.1397]
[1739091042500,8.89636388,2667.2,2666.9,0.59342588]
[1739091042799,8.34022828,2667.2,2666.9,0.59342588]
[1739091043593,2.51605147,2667.1,2666.9,0.00562588]
[1739091043794,2.58556147,2667.1,2666.8,1.4999]
[1739091043991,3.2078,2666.9,2666.8,1.4999]
[1739091044203,3.2078,2666.9,2666.5,1.194]
[1739091044503,0.5747,2666.8,2666.5,1.194]
[1739091044704,1.62,2666.7,2666.5,1.194]
[1739091044904,5.858269,2666.7,2666.5,1.194]
[1739091051002,5.858269,2666.7,2666.5,41.994]
[1739091052202,5.858269,2666.7,2666.5,1.194]
[1739091052502,4.238269,2666.7,2666.5,1.194]
[1739091052700,0.00562588,2666.9,2666.6,40.8]
[1739091054705,1.62,2667.3,2666.8,3.2078]
[1739091054910,1.62,2667.3,2666.9,0.5616]
[1739091055205,3.90036514,2667.2,2667.0,0.5832]
[1739091055401,1.62,2667.3,2667.0,0.5832]
[1739091055611,5.38849034,2667.7,2667.0,0.5832]
[1739091055813,1.62,2667.6,2667.0,0.5832]
[1739091056112,4.17833719,2667.5,2667.0,0.5832]
[1739091056314,5.80396307,2667.6,2667.0,0.5832]
[1739091056514,1.62562588,2667.6,2667.0,0.5832]
[1739091056813,4.17833719,2667.5,2667.0,0.5832]
[1739091057914,4.17833719,2667.5,2667.1,0.5998]
[1739091062514,4.17833719,2667.5,2667.0,0.5832]
[1739091062714,4.1451,2667.4,2667.0,0.5832]
[1739091062917,4.1451,2667.4,2667.0,2.083]
[1739091063110,4.28215023,2667.3,2667.0,2.083]
[1739091063311,0.6031,2667.2,2667.0,2.083]
[1739091063514,4.28215023,2667.3,2667.0,2.083]
[1739091066618,0.00562588,2667.6,2667.1,3.2078]
[1739091066814,0.00562588,2667.6,2667.4,3.2078]
[1739091067015,0.00562588,2667.6,2667.5,1.769]
[1739091069124,0.00562588,2667.6,2667.5,42.569]
[1739091072320,0.00562588,2667.6,2667.5,44.0685]
[1739091074434,0.00562588,2667.6,2667.5,3.2685]
[1739091077327,0.00562588,2667.6,2667.5,44.0685]
[1739091078032,0.00562588,2667.6,2667.5,50.2905]
[1739091082036,3.2078,2668.2,2667.5,56.2905]
[1739091082335,3.2078,2668.2,2668.0,1.99126147]
[1739091082538,3.2078,2668.2,2668.1,1.133]
[1739091083034,3.2078,2668.2,2668.1,41.933]
[1739091084742,3.77002588,2668.4,2668.1,41.933]
[1739091085239,3.21342588,2668.4,2668.2,0.5652]
[1739091086235,0.00562588,2668.4,2668.2,0.5652]
[1739091088641,0.00562588,2668.4,2668.3,40.8]
[1739091094251,0.00562588,2668.4,2668.3,42.79126147]
[1739091095145,0.00562588,2668.4,2668.3,44.29026147]
[1739091095836,0.00562588,2668.4,2668.3,47.49806147]
[1739091098240,0.5762,2668.9,2668.3,47.49806147]
[1739091098545,0.5762,2668.9,2668.6,1.99126147]
[1739091098745,3.2078,2669.0,2668.7,1.1867]
[1739091098946,3.2078,2669.0,2668.7,1.7357]
[1739091099244,3.2078,2669.0,2668.7,42.5357]
[1739091099841,4.18721994,2668.9,2668.3,13.10886147]
[1739091100046,4.18721994,2668.9,2668.4,1.6615]
[1739091100243,1.1418,2668.8,2668.4,1.6615]
[1739091100639,4.08985421,2668.7,2668.4,1.6615]
[1739091102648,4.08985421,2668.7,2668.6,0.88985196]
[1739091104838,4.08985421,2668.7,2668.5,1.4989]
[1739091107551,0.3457,2668.6,2668.5,1.4989]
[1739091114056,4.08985421,2668.7,2668.5,1.4989]
[1739091114255,4.03578501,2668.6,2668.5,1.4989]
[1739091114455,4.03578501,2668.7,2668.5,2.38875196]
[1739091114755,1.1418,2668.8,2668.5,2.38875196]
[1739091115256,3.92957706,2668.7,2668.5,2.38875196]
[1739091118556,3.92957706,2668.7,2668.5,2.95975196]
[1739091120658,0.57452588,2669.1,2668.5,2.95975196]
[1739091120859,0.57452588,2669.1,2668.6,0.88985196]
[1739091121059,4.09443096,2669.0,2668.6,0.88985196]
[1739091121660,3.2078,2668.9,2668.6,0.88985196]
[1739091121858,1.44105196,2668.8,2668.5,1.4989]
[1739091122064,0.5994,2668.7,2668.5,1.4989]
[1739091122463,4.24109923,2668.6,2668.5,1.4989]
[1739091130659,4.24109923,2668.6,2668.5,0.9989]
[1739091130867,13.27343119,2668.6,2668.1,0.5844]
[1739091131066,4.09765196,2668.4,2668.1,0.5844]
[1739091131265,1.1516,2668.3,2668.1,0.5844]
[1739091131568,5.42316056,2668.3,2668.1,0.5844]
[1739091133866,0.88985196,2668.2,2668.1,0.5844]
[1739091134072,0.88985196,2668.2,2668.0,0.5802]
[1739091134265,4.79007853,2668.2,2668.0,0.5802]
[1739091135375,3.90022657,2668.2,2668.0,1.47005196]
[1739091136473,3.90022657,2668.2,2668.1,0.5963]
[1739091137480,3.90022657,2668.2,2668.1,41.3963]
[1739091149575,3.2078,2668.7,2668.1,50.8261]
[1739091149785,3.2078,2668.7,2668.4,1.98902988]
[1739091149978,3.5535,2669.0,2668.5,0.5611]
[1739091150189,3.2078,2669.0,2668.8,1.98902988]
[1739091150381,3.2078,2669.0,2668.9,0.5611]
[1739091150382,3.95855807,2669.0,2668.9,0.5611]
[1739091150580,0.00562588,2669.1,2668.9,0.5611]
[1739091150778,0.00562588,2669.1,2669.0,0.5643]
[1739091152680,0.00562588,2669.1,2669.0,0.7531]
[1739091152875,0.00562588,2669.1,2669.0,1.301]
[1739091157587,0.00562588,2669.1,2669.0,1.59955026]
[1739091157789,0.00562588,2669.1,2669.0,1.41075026]
[1739091160581,0.00562588,2669.1,2669.0,2.90935026]
[1739091166689,0.00562588,2669.1,2669.0,3.79860095]
[1739091167495,0.5524,2669.8,2669.0,3.79860095]
[1739091167693,0.5524,2669.8,2669.7,0.88925069]
[1739091168096,4.46646111,2669.8,2669.7,0.88925069]
[1739091168799,4.46646111,2669.8,2669.7,1.98642967]
[1739091176097,4.46646111,2669.8,2669.7,42.78642967]
[1739091177606,3.91406111,2669.8,2669.7,42.78642967]
[1739091177812,0.5512,2669.9,2669.7,42.78642967]
[1739091178607,0.5561,2669.8,2669.7,42.78642967]
[1739091184104,0.5512,2669.9,2669.7,42.78642967]
[1739091184507,0.5744,2670.0,2669.7,42.78642967]
[1739091184713,0.5757,2670.2,2669.7,42.78642967]
[1739091185011,1.1537,2670.2,2670.0,1.98642967]
[1739091185208,1.1537,2670.2,2670.1,1.1318]
[1739091185703,1.1537,2670.2,2670.1,41.9318]
[1739091187014,0.578,2670.2,2670.1,41.9318]
[1739091189021,0.578,2670.2,2670.1,1.1318]
[1739091189523,0.578,2670.2,2670.1,41.9318]
[1739091190620,0.578,2670.2,2670.1,42.82054976]
[1739091191318,0.578,2670.2,2670.1,41.68874976]
[1739091191517,4.48185615,2670.2,2670.0,1.4981]
[1739091194812,4.48185615,2670.2,2670.0,0.9981]
[1739091195124,4.48185615,2670.2,2669.6,0.1888]
[1739091195824,4.48185615,2670.2,2669.7,1.98647257]
[1739091196025,0.18489862,2671.0,2670.1,3.2078]
[1739091196226,0.5898,2670.8,2670.5,1.98647257]
[1739091196429,4.62062489,2670.8,2670.5,1.98647257]
[1739091196730,0.5898,2670.8,2670.5,1.98647257]
[1739091197424,0.5898,2670.8,2670.5,42.78647257]
[1739091197614,4.32837519,2670.7,2670.5,42.78647257]
[1739091201945,4.32837519,2670.7,2670.5,1.98647257]
[1739091202142,4.32837519,2670.7,2670.6,0.588]
[1739091202550,0.583,2671.1,2670.6,0.588]
[1739091202825,4.8469448,2671.1,2670.8,1.98647257]
[1739091204127,4.8469448,2671.1,2670.8,2.56067257]
[1739091206425,4.2639448,2671.1,2670.8,2.56067257]
[1739091206629,3.85552593,2671.6,2670.8,10.76914514]
[1739091206630,3.2078,2671.6,2670.8,10.76914514]
[1739091206831,3.2078,2671.6,2671.5,1.98647257]
[1739091207429,0.5509,2671.8,2671.5,5.19427257]
[1739091207831,4.21630082,2671.7,2671.5,5.19427257]
[1739091208234,4.21630082,2671.7,2671.6,40.8]
[1739091208924,4.21630082,2671.7,2671.5,1.98647257]
[1739091209128,0.5694,2671.6,2671.2,7.20817257]
[1739091209326,0.5694,2671.6,2671.2,7.80927257]
[1739091209525,4.30397868,2671.5,2671.2,7.80927257]
[1739091209938,4.30397868,2671.5,2671.2,7.20817257]
[1739091210145,0.5753,2671.4,2671.2,3.41547257]
[1739091210538,3.9890039,2671.3,2671.2,3.41547257]
[1739091210742,3.9890039,2671.3,2671.2,1.429]
[1739091210937,3.9890039,2671.3,2670.9,5.19989845]
[1739091211144,3.9890039,2671.3,2671.2,1.98647257]
[1739091211343,0.5694,2671.6,2671.2,1.98647257]
[1739091211645,0.5694,2671.6,2671.3,1.7699]
[1739091212140,0.5694,2671.6,2671.3,3.1945]
[1739091213943,4.29931309,2671.5,2671.3,1.4246]
[1739091215153,0.5994,2671.4,2671.3,1.4246]
[1739091215536,4.76211633,2671.4,2670.9,5.79819845]
[1739091215742,0.5999,2671.3,2670.9,5.79819845]
[1739091216238,4.16271633,2671.2,2670.9,5.79819845]
[1739091216642,4.16271633,2671.2,2670.9,7.21869845]
[1739091216943,0.573,2671.1,2670.9,7.21869845]
[1739091217344,3.94600085,2671.0,2670.9,7.21869845]
[1739091224752,0.569,2671.6,2670.9,7.21869845]
[1739091224753,0.5771,2671.5,2670.9,7.21869845]
[1739091225058,4.79625601,2671.5,2671.3,1.98647257]
[1739091227252,4.79625601,2671.5,2671.1,0.6026]
[1739091229953,4.79625601,2671.5,2671.0,3.97307257]
[1739091232545,6.41125601,2671.5,2671.0,3.97307257]
[1739091234160,6.41125601,2671.5,2671.0,3.39417257]